fUST/lending_fUST_20250708
["ID","MTS","AMOUNT","RATE_DAILY","PERIOD"]
[370367595,1751981488368,-20.73255814,0.00022191,2]
[370367596,1751981488377,-1462.65,0.00022191,2]
[370367597,1751981488387,-1323.76,0.00022191,2]
[370367598,1751981488397,-460.0,0.00022191,2]
[370367599,1751981488406,-704.81,0.00022191,2]
[370367600,1751981488415,-479.18,0.00022191,2]
[370367601,1751981488425,-460.0,0.00022191,2]
[370367602,1751981488434,-520.04,0.00022191,2]
[370367603,1751981488443,-1434.35,0.00022191,2]
[370367604,1751981488454,-5953.51,0.00022191,2]
[370367605,1751981488465,-272.49,0.00022191,2]
[370367606,1751981488474,-841.4,0.00022191,2]
[370367607,1751981488485,-2917.72,0.00022191,2]
[370367608,1751981488494,-2157.33,0.00022191,2]
[370367609,1751981488503,-3295.55,0.00022191,2]
[370367610,1751981488513,-460.0,0.00022191,2]
[370367611,1751981488522,-1045.57,0.00022191,2]
[370367612,1751981488531,-460.0,0.00022191,2]
[370367613,1751981488540,-460.0,0.00022191,2]
[370367614,1751981488550,-730.08,0.00022191,2]
[370367615,1751981488559,-1048.98,0.00022191,2]
[370367616,1751981488568,-1584.14,0.00022191,2]
[370367617,1751981488578,-325.34473539,0.00022192,2]
[370367618,1751981488588,-236.20857,0.00022193,2]
[370367619,1751981488598,-160.930942,0.00022232,2]
[370367620,1751981488607,-12500.0,0.00022236,2]
[370367621,1751981488616,-12500.0,0.00022245,2]
[370367622,1751981488627,-12500.0,0.00022254,2]
[370367623,1751981488639,-12500.0,0.00022262,2]
[370367624,1751981488648,-12500.0,0.00022271,2]
[370367625,1751981488656,-12500.0,0.00022279,2]
[370367626,1751981488667,-5461.15789496,0.00022279,6]
[370367627,1751981488676,-12500.0,0.0002228,2]
[370367628,1751981488685,-158.878442,0.00022284,2]
[370367629,1751981488694,-10094.47362767,0.00022285,2]
[370367630,1751981488703,-12500.0,0.00022287,2]
[370367631,1751981488713,-236.20857,0.00022288,2]
[370367632,1751981488722,-2000.0,0.000223,2]
[370367633,1751981488732,-2030.76176946,0.00022316,2]
[370367634,1751981488741,-160.930942,0.00022353,2]
[370367635,1751981488751,-3500.0,0.0002236,2]
[370367636,1751981488760,-3500.0,0.0002236,2]
[370367637,1751981488769,-1522.44952311,0.0002236,2]
[370367638,1751981488778,-236.20857,0.00022382,2]
[370367639,1751981488788,-158.878442,0.00022399,2]
[370367640,1751981488797,-2000.0,0.000224,2]
[370367641,1751981488807,-5000.0,0.00022445,30]
[370367642,1751981488816,-4200.0,0.0002246,2]
[370367643,1751981488826,-500.0,0.0002246,2]
[370367644,1751981488836,-3500.0,0.0002246,2]
[370367645,1751981488846,-460.0,0.00022465,2]
[370367646,1751981488855,-460.0,0.00022465,2]
[370367647,1751981488865,-529.8,0.00022465,2]
[370367648,1751981488875,-460.0,0.00022465,2]
[370367649,1751981488884,-188.49941857,0.00022465,2]
[370367650,1751981488893,-205.83123797,0.00022465,2]
[370367651,1751981488903,-460.0,0.00022465,2]
[370367652,1751981488912,-460.0,0.00022465,2]
[370367653,1751981488921,-460.0,0.00022465,2]
[370367654,1751981488931,-465.54,0.00022465,2]
[370367655,1751981488940,-460.0,0.00022465,2]
[370367656,1751981488949,-569.19,0.00022465,2]
[370367657,1751981488958,-460.0,0.00022465,2]
[370367658,1751981488968,-193.8,0.00022465,2]
[370367659,1751981488978,-461.68,0.00022465,2]
[370367660,1751981488987,-713.88,0.00022465,2]
[370367661,1751981488996,-460.0,0.00022465,2]
[370367662,1751981489005,-460.0,0.00022465,2]
[370367663,1751981489015,-464.6,0.00022465,2]
[370367664,1751981489024,-758.18,0.00022465,2]
[370367665,1751981489035,-460.0,0.00022465,2]
[370367666,1751981489044,-460.0,0.00022465,2]
[370367667,1751981489054,-460.0,0.00022465,2]
[370367668,1751981489063,-460.0,0.00022465,2]
[370367669,1751981489073,-567.15,0.00022465,2]
[370367670,1751981489082,-460.0,0.00022465,2]
[370367671,1751981489091,-460.0,0.00022465,2]
[370367672,1751981489100,-552.98,0.00022465,2]
[370367673,1751981489109,-498.51,0.00022465,2]
[370367674,1751981489118,-460.0,0.00022465,2]
[370367675,1751981489128,-460.0,0.00022465,2]
[370367676,1751981489137,-460.0,0.00022465,2]
[370367677,1751981489146,-609.74,0.00022465,2]
[370367678,1751981489155,-460.0,0.00022465,2]
[370367679,1751981489164,-1124.92,0.00022465,2]
[370367680,1751981489173,-460.0,0.00022465,2]
[370367681,1751981489183,-1744.91,0.00022465,2]
[370367682,1751981489192,-482.14,0.00022465,2]
[370367683,1751981489202,-428.47155765,0.00022465,2]
[370367684,1751981489211,-1208.23,0.00022465,2]
[370367685,1751981489220,-460.0,0.00022465,2]
[370367686,1751981489229,-460.0,0.00022465,2]
[370367687,1751981489239,-1511.21,0.00022465,2]
[370367688,1751981489248,-794.32,0.00022465,2]
[370367689,1751981489257,-460.0,0.00022465,2]
[370367690,1751981489267,-460.0,0.00022465,2]
[370367691,1751981489276,-519.1,0.00022465,2]
[370367692,1751981489285,-460.0,0.00022465,2]
[370367693,1751981489294,-493.07,0.00022465,2]
[370367694,1751981489308,-460.0,0.00022465,2]
[370367695,1751981489319,-771.38,0.00022465,2]
[370367696,1751981489328,-460.0,0.00022465,2]
[370367697,1751981489338,-460.0,0.00022465,2]
[370367698,1751981489347,-460.0,0.00022465,2]
[370367699,1751981489359,-2014.72,0.00022465,2]
[370367700,1751981489368,-1911.82,0.00022465,2]
[370367701,1751981489378,-460.0,0.00022465,2]
[370367702,1751981489389,-460.0,0.00022465,2]
[370367703,1751981489399,-460.0,0.00022465,2]
[370367704,1751981489408,-608.19,0.00022465,2]
[370367705,1751981489417,-955.2,0.00022465,2]
[370367706,1751981489427,-547.96,0.00022465,2]
[370367707,1751981489436,-460.0,0.00022465,2]
[370367708,1751981489446,-460.0,0.00022465,2]
[370367709,1751981489456,-460.0,0.00022465,2]
[370367710,1751981489465,-1049.02,0.00022465,2]
[370367711,1751981489475,-409.56913167,0.00022465,2]
[370367712,1751981489484,-746.26,0.00022465,2]
[370367713,1751981489494,-460.0,0.00022465,2]
[370367714,1751981489503,-467.97,0.00022465,2]
[370367715,1751981489512,-905.71,0.00022465,2]
[370367716,1751981489522,-460.0,0.00022465,2]
[370367717,1751981489532,-460.0,0.00022465,2]
[370367718,1751981489541,-1070.05,0.00022465,2]
[370367719,1751981489553,-460.0,0.00022465,2]
[370367720,1751981489562,-1572.06,0.00022465,2]
[370367721,1751981489572,-621.79,0.00022465,2]
[370367722,1751981489581,-693.45,0.00022465,2]
[370367723,1751981489591,-841.07,0.00022465,2]
[370367724,1751981489600,-520.83757941,0.00022465,2]
[370367725,1751981489610,-5517.82,0.00022465,2]
[370367726,1751981489619,-460.0,0.00022465,2]
[370367727,1751981489628,-1821.56,0.00022465,2]
[370367728,1751981489638,-1036.04,0.00022465,2]
[370367729,1751981489647,-5439.09,0.00022465,2]
[370367730,1751981489656,-765.94,0.00022465,2]
[370367731,1751981489665,-1757.46,0.00022465,2]
[370367732,1751981489675,-460.0,0.00022465,2]
[370367733,1751981489684,-1867.66,0.00022465,2]
[370367734,1751981489693,-3385.63,0.00022465,2]
[370367735,1751981489702,-991.97,0.00022465,2]
[370367736,1751981489711,-460.0,0.00022465,2]
[370367737,1751981489721,-898.5,0.00022465,2]
[370367738,1751981489731,-560.13,0.00022465,2]
[370367739,1751981489740,-460.0,0.00022465,2]
[370367740,1751981489750,-4924.84,0.00022465,2]
[370367741,1751981489759,-4461.65,0.00022465,2]
[370367742,1751981489769,-559.75,0.00022465,2]
[370367743,1751981489779,-3873.62,0.00022465,2]
[370367744,1751981489789,-460.0,0.00022465,2]
[370367745,1751981489799,-602.16,0.00022465,2]
[370367746,1751981489810,-460.0,0.00022465,2]
[370367747,1751981489820,-2351.87,0.00022465,2]
[370367748,1751981489829,-900.22,0.00022465,2]
[370367749,1751981489838,-460.0,0.00022465,2]
[370367750,1751981489848,-417.16,0.00022465,2]
[370367751,1751981489857,-460.0,0.00022465,2]
[370367752,1751981489867,-1341.38,0.00022465,2]
[370367753,1751981489878,-505.9,0.00022465,2]
[370367754,1751981489888,-460.0,0.00022465,2]
[370367755,1751981489900,-460.0,0.00022465,2]
[370367756,1751981489910,-1267.68,0.00022465,2]
[370367757,1751981489919,-1821.03,0.00022465,2]
[370367758,1751981489929,-2121.78,0.00022465,2]
[370367759,1751981490108,-2845.28,0.00022465,2]
[370367760,1751981490119,-11303.12,0.00022465,2]
[370367761,1751981490129,-3011.57,0.00022465,2]
[370367762,1751981490138,-460.0,0.00022465,2]
[370367763,1751981490148,-460.0,0.00022465,2]
[370367764,1751981490158,-888.63,0.00022465,2]
[370367765,1751981490167,-460.0,0.00022465,2]
[370367766,1751981490177,-188.29,0.00022465,2]
[370367767,1751981490187,-460.0,0.00022465,2]
[370367768,1751981490197,-460.0,0.00022465,2]
[370367769,1751981490207,-460.0,0.00022465,2]
[370367770,1751981490216,-749.06,0.00022465,2]
[370367771,1751981490226,-1278.14,0.00022465,2]
[370367772,1751981490235,-1955.19,0.00022465,2]
[370367773,1751981490245,-526.77,0.00022465,2]
[370367774,1751981490254,-460.0,0.00022465,2]
[370367775,1751981490263,-6484.75,0.00022465,2]
[370367776,1751981490273,-460.0,0.00022465,2]
[370367777,1751981490283,-460.0,0.00022465,2]
[370367778,1751981490292,-1174.49,0.00022465,2]
[370367779,1751981490301,-519.16,0.00022465,2]
[370367780,1751981490316,-2194.12,0.00022465,2]
[370367781,1751981490325,-460.0,0.00022465,2]
[370367782,1751981490335,-460.0,0.00022465,2]
[370367783,1751981490344,-531.38,0.00022465,2]
[370367784,1751981490354,-6706.7,0.00022465,2]
[370367785,1751981490364,-331.43,0.00022465,2]
[370367786,1751981490373,-1201.64,0.00022465,2]
[370367787,1751981490383,-1170.12,0.00022465,2]
[370367788,1751981490392,-485.05,0.00022465,2]
[370367789,1751981490402,-460.0,0.00022465,2]
[370367790,1751981490411,-9417.42,0.00022465,2]
[370367791,1751981490421,-615.44,0.00022465,2]
[370367792,1751981490431,-3183.99,0.00022465,2]
[370367793,1751981490441,-532.41,0.00022465,2]
[370367794,1751981490450,-272.38002004,0.00022465,2]
[370367795,1751981490459,-1462.65,0.00022465,2]
[370367796,1751981490469,-1323.76,0.00022465,2]
[370367797,1751981490479,-460.0,0.00022465,2]
[370367798,1751981490488,-704.81,0.00022465,2]
[370367799,1751981490497,-479.18,0.00022465,2]
[370367800,1751981490506,-460.0,0.00022465,2]
[370367801,1751981490516,-520.04,0.00022465,2]
[370367802,1751981490525,-1434.35,0.00022465,2]
[370367803,1751981490535,-5953.51,0.00022465,2]
[370367804,1751981490544,-841.4,0.00022465,2]
[370367805,1751981490555,-2917.72,0.00022465,2]
[370367806,1751981490564,-2157.33,0.00022465,2]
[370367807,1751981490574,-3295.55,0.00022465,2]
[370367808,1751981490583,-460.0,0.00022465,2]
[370367809,1751981490592,-1045.57,0.00022465,2]
[370367810,1751981490602,-460.0,0.00022465,2]
[370367811,1751981490611,-460.0,0.00022465,2]
[370367812,1751981490621,-730.08,0.00022465,2]
[370367813,1751981490630,-1048.98,0.00022465,2]
[370367814,1751981490639,-1584.14,0.00022465,2]
[370367815,1751981490649,-300.0,0.00022466,2]
[370367816,1751981490658,-250.0,0.00022466,2]
[370367817,1751981490668,-160.930942,0.00022474,2]
[370367818,1751981490677,-164496.91608523,0.0002249,7]
[370367819,1751981490686,-1944.73560094,0.000225,15]
[370367820,1751981490695,-500.0,0.000225,2]
[370367821,1751981490704,-1005.26233944,0.000225,2]
[370367822,1751981490713,-2072.99,0.0002251,7]
[370367823,1751981490723,-154.51746456,0.00022512,2]
[370367824,1751981490733,-158.878442,0.00022513,2]
[370367825,1751981490742,-153.0,0.00022521,2]
[370367826,1751981490751,-306.0,0.00022521,2]
[370367827,1751981490761,-5461.15789496,0.00022521,7]
[370367828,1751981490772,-500.0,0.00022522,2]
[370367829,1751981490782,-150.0,0.00022556,2]
[370367830,1751981490791,-150.0,0.00022556,2]
[370367831,1751981490801,-150.0,0.00022556,2]
[370367832,1751981490811,-150.0,0.00022556,2]
[370367833,1751981490821,-150.0,0.00022556,2]
[370367834,1751981490831,-587.0,0.00022573,2]
[370367835,1751981490840,-160.930942,0.00022595,2]
[370367836,1751981490850,-2153.0,0.00022598,2]
[370367837,1751981490859,-646.0,0.00022598,2]
[370367838,1751981490869,-407.0,0.00022598,2]
[370367839,1751981490878,-967.0,0.00022598,2]
[370367840,1751981490887,-161.75988599,0.000226,7]
[370367841,1751981490896,-4774.09,0.000226,7]
[370367842,1751981490905,-289.198281,0.00022603,2]
[370367843,1751981490915,-2072.99,0.0002261,6]
[370367844,1751981490925,-158.878442,0.00022627,2]
[370367845,1751981490934,-2072.99,0.0002271,7]
[370367846,1751981490943,-160.930942,0.00022716,2]
[370367847,1751981490953,-150.0,0.00022734,30]
[370367848,1751981490962,-460.0,0.00022739,2]
[370367849,1751981490971,-461.19135201,0.00022739,2]
[370367850,1751981490980,-529.8,0.00022739,2]
[370367851,1751981490990,-287.85286679,0.00022739,18]
[370367852,1751981491000,-460.0,0.00022739,2]
[370367853,1751981491009,-460.0,0.00022739,2]
[370367854,1751981491018,-460.0,0.00022739,2]
[370367855,1751981491028,-460.0,0.00022739,2]
[370367856,1751981491037,-465.54,0.00022739,2]
[370367857,1751981491047,-460.0,0.00022739,2]
[370367858,1751981491057,-569.19,0.00022739,2]
[370367859,1751981491066,-460.0,0.00022739,2]
[370367860,1751981491076,-713.88,0.00022739,2]
[370367861,1751981491086,-460.0,0.00022739,2]
[370367862,1751981491096,-460.0,0.00022739,2]
[370367863,1751981491107,-464.6,0.00022739,2]
[370367864,1751981491117,-758.18,0.00022739,2]
[370367865,1751981491127,-500.93030441,0.00022739,2]
[370367866,1751981491136,-460.0,0.00022739,2]
[370367867,1751981491147,-460.0,0.00022739,2]
[370367868,1751981491156,-567.15,0.00022739,2]
[370367869,1751981491166,-460.0,0.00022739,2]
[370367870,1751981491175,-460.0,0.00022739,2]
[370367871,1751981491185,-552.98,0.00022739,2]
[370367872,1751981491195,-498.51,0.00022739,2]
[370367873,1751981491205,-460.0,0.00022739,2]
[370367874,1751981491215,-460.0,0.00022739,2]
[370367875,1751981491224,-460.0,0.00022739,2]
[370367876,1751981491234,-609.74,0.00022739,2]
[370367877,1751981491244,-310.3896517,0.00022739,2]
[370367878,1751981491255,-1124.92,0.00022739,2]
[370367879,1751981491264,-460.0,0.00022739,2]
[370367880,1751981491275,-1744.91,0.00022739,2]
[370367881,1751981491284,-482.14,0.00022739,2]
[370367882,1751981491294,-1208.23,0.00022739,2]
[370367883,1751981491303,-460.0,0.00022739,2]
[370367884,1751981491316,-460.0,0.00022739,2]
[370367885,1751981491326,-1511.21,0.00022739,2]
[370367886,1751981491335,-794.32,0.00022739,2]
[370367887,1751981491344,-460.0,0.00022739,2]
[370367888,1751981491354,-519.1,0.00022739,2]
[370367889,1751981491364,-460.0,0.00022739,2]
[370367890,1751981491374,-493.07,0.00022739,2]
[370367891,1751981491384,-460.0,0.00022739,2]
[370367892,1751981491395,-771.38,0.00022739,2]
[370367893,1751981491404,-366.37729097,0.00022739,2]
[370367894,1751981491414,-460.0,0.00022739,2]
[370367895,1751981491423,-460.0,0.00022739,2]
[370367896,1751981491433,-2014.72,0.00022739,2]
[370367897,1751981491443,-1911.82,0.00022739,2]
[370367898,1751981491452,-460.0,0.00022739,2]
[370367899,1751981491461,-460.0,0.00022739,2]
[370367900,1751981491471,-460.0,0.00022739,2]
[370367901,1751981491480,-608.19,0.00022739,2]
[370367902,1751981491490,-955.2,0.00022739,2]
[370367903,1751981491499,-547.96,0.00022739,2]
[370367904,1751981491508,-460.0,0.00022739,2]
[370367905,1751981491518,-514.09306818,0.00022739,2]
[370367906,1751981491528,-460.0,0.00022739,2]
[370367907,1751981491537,-1049.02,0.00022739,2]
[370367908,1751981491547,-746.26,0.00022739,2]
[370367909,1751981491558,-460.0,0.00022739,2]
[370367910,1751981491567,-467.97,0.00022739,2]
[370367911,1751981491576,-905.71,0.00022739,2]
[370367912,1751981491586,-460.0,0.00022739,2]
[370367913,1751981491596,-1070.05,0.00022739,2]
[370367914,1751981491606,-461.57923151,0.00022739,2]
[370367915,1751981491615,-1572.06,0.00022739,2]
[370367916,1751981491624,-621.79,0.00022739,2]
[370367917,1751981491634,-693.45,0.00022739,2]
[370367918,1751981491644,-841.07,0.00022739,2]
[370367919,1751981491653,-5517.82,0.00022739,2]
[370367920,1751981491663,-460.0,0.00022739,2]
[370367921,1751981491672,-1821.56,0.00022739,2]
[370367922,1751981491682,-1036.04,0.00022739,2]
[370367923,1751981491691,-5439.09,0.00022739,2]
[370367924,1751981491701,-765.94,0.00022739,2]
[370367925,1751981491711,-1757.46,0.00022739,2]
[370367926,1751981491721,-460.0,0.00022739,2]
[370367927,1751981491730,-1867.66,0.00022739,2]
[370367928,1751981491739,-3385.63,0.00022739,2]
[370367929,1751981491749,-991.97,0.00022739,2]
[370367930,1751981491759,-460.0,0.00022739,2]
[370367931,1751981491768,-898.5,0.00022739,2]
[370367932,1751981491778,-560.13,0.00022739,2]
[370367933,1751981491788,-460.0,0.00022739,2]
[370367934,1751981491798,-4924.84,0.00022739,2]
[370367935,1751981491808,-4461.65,0.00022739,2]
[370367936,1751981491826,-559.75,0.00022739,2]
[370367937,1751981491842,-3873.62,0.00022739,2]
[370367938,1751981491856,-460.0,0.00022739,2]
[370367939,1751981491868,-602.16,0.00022739,2]
[370367940,1751981491883,-460.0,0.00022739,2]
[370367941,1751981491898,-2351.87,0.00022739,2]
[370367942,1751981491913,-900.22,0.00022739,2]
[370367943,1751981491927,-160.81818937,0.00022739,2]
[370367944,1751981491943,-460.0,0.00022739,2]
[370367945,1751981491958,-1341.38,0.00022739,2]
[370367946,1751981491972,-505.9,0.00022739,2]
[370367947,1751981491985,-460.0,0.00022739,2]
[370367948,1751981492000,-460.0,0.00022739,2]
[370367949,1751981492013,-1267.68,0.00022739,2]
[370367950,1751981492027,-1821.03,0.00022739,2]
[370367951,1751981492037,-2121.78,0.00022739,2]
[370367952,1751981492051,-2845.28,0.00022739,2]
[370367953,1751981492067,-11303.12,0.00022739,2]
[370367954,1751981492081,-3011.57,0.00022739,2]
[370367955,1751981492095,-533.43,0.00022739,2]
[370367956,1751981492110,-460.0,0.00022739,2]
[370367957,1751981492125,-888.63,0.00022739,2]
[370367958,1751981492137,-460.0,0.00022739,2]
[370367959,1751981492148,-460.0,0.00022739,2]
[370367960,1751981492159,-460.0,0.00022739,2]
[370367961,1751981492174,-460.0,0.00022739,2]
[370367962,1751981492189,-749.06,0.00022739,2]
[370367963,1751981492200,-1278.14,0.00022739,2]
[370367964,1751981492214,-1955.19,0.00022739,2]
[370367965,1751981492228,-526.77,0.00022739,2]
[370367966,1751981492240,-460.0,0.00022739,2]
[370367967,1751981492252,-6484.75,0.00022739,2]
[370367968,1751981492264,-521.67214631,0.00022739,2]
[370367969,1751981492276,-460.0,0.00022739,2]
[370367970,1751981492288,-1174.49,0.00022739,2]
[370367971,1751981492300,-519.16,0.00022739,2]
[370367972,1751981492317,-2194.12,0.00022739,2]
[370367973,1751981492329,-460.0,0.00022739,2]
[370367974,1751981492341,-460.0,0.00022739,2]
[370367975,1751981492353,-531.38,0.00022739,2]
[370367976,1751981492366,-6706.7,0.00022739,2]
[370367977,1751981492378,-1201.64,0.00022739,2]
[370367978,1751981492392,-1170.12,0.00022739,2]
[370367979,1751981492406,-485.05,0.00022739,2]
[370367980,1751981492418,-591.30538433,0.00022739,2]
[370367981,1751981492430,-9417.42,0.00022739,2]
[370367982,1751981492444,-615.44,0.00022739,2]
[370367983,1751981492456,-3183.99,0.00022739,2]
[370367984,1751981492468,-532.41,0.00022739,2]
[370367985,1751981492480,-1462.65,0.00022739,2]
[370367986,1751981492493,-1323.76,0.00022739,2]
[370367987,1751981492504,-704.81,0.00022739,2]
[370367988,1751981492517,-460.0,0.00022739,2]
[370367989,1751981492528,-479.18,0.00022739,2]
[370367990,1751981492540,-460.0,0.00022739,2]
[370367991,1751981492553,-520.04,0.00022739,2]
[370367992,1751981492565,-1434.35,0.00022739,2]
[370367993,1751981492578,-5953.51,0.00022739,2]
[370367994,1751981492589,-841.4,0.00022739,2]
[370367995,1751981492601,-2917.72,0.00022739,2]
[370367996,1751981492613,-2157.33,0.00022739,2]
[370367997,1751981492623,-3295.55,0.00022739,2]
[370367998,1751981492634,-460.0,0.00022739,2]
[370367999,1751981492646,-1045.57,0.00022739,2]
[370368000,1751981492657,-460.0,0.00022739,2]
[370368001,1751981492670,-460.0,0.00022739,2]
[370368002,1751981492681,-730.08,0.00022739,2]
[370368003,1751981492692,-1048.98,0.00022739,2]
[370368004,1751981492703,-1584.14,0.00022739,2]
[370368005,1751981492714,-158.878442,0.00022741,2]
[370368006,1751981492726,-5461.15789496,0.00022762,7]
[370368007,1751981492738,-1038.124908,0.0002277,2]
[370368008,1751981492750,-2000.0,0.000228,2]
[370368009,1751981492761,-300.34383223,0.00022805,2]
[370368010,1751981492773,-2072.99,0.0002281,3]
[370368011,1751981492785,-158.878442,0.00022856,2]
[370368012,1751981492796,-150.0,0.00022879,2]
[370368013,1751981492805,-134148.26,0.000229,2]
[370368014,1751981492815,-7382.5,0.000229,7]
[370368015,1751981492825,-4000.0,0.00022908,2]
[370368016,1751981492834,-516.20869616,0.00022908,2]
[370368017,1751981492843,-2072.99,0.0002291,5]
[370368018,1751981492853,-162987.97729894,0.00022919,2]
[370368019,1751981492862,-36640.66825664,0.00022919,2]
[370368020,1751981492881,-352.91111219,0.00022919,2]
[370368021,1751981492890,-59229.06967903,0.00023,26]
[370368022,1751981492916,-236.20857,0.00022477,2]
[370368023,1751981492928,-9150.4032018,0.00023,26]
[370368024,1751981492944,-460.0,0.00019178,2]
[370368025,1751981492955,-268.1996,0.00023,26]
[370368026,1751981492966,-545.89180486,0.00023,26]
[370368027,1751981492978,-12352.6212382,0.00023,26]
[370368028,1751981493118,-151.0,0.00019178,2]
[370368029,1751981493127,-195.8220681,0.00019178,2]
[370368030,1751981493139,-264.1779319,0.00019178,2]
[370368031,1751981493148,-151.0,0.00019178,2]
[370368032,1751981493158,-151.0,0.00019178,2]
[370368033,1751981493168,-151.0,0.00019178,2]
[370368034,1751981493178,-7495.81190218,0.00023,26]
[370368035,1751981493195,-151.0,0.00019178,2]
[370368036,1751981493204,-1403.57737935,0.00023,26]
[370368037,1751981493216,-254.00260516,0.00023,26]
[370368038,1751981493228,-514.49783052,0.00023,26]
[370368039,1751981493239,-603.519,0.00023,26]
[370368040,1751981493250,-824.95454347,0.00023,26]
[370368041,1751981493610,-460.0,0.00019178,2]
[370368042,1751981493620,-219.735924,0.00019178,2]
[370368043,1751981493630,-219.735924,0.00019178,2]
[370368044,1751981493640,-219.735924,0.00019178,2]
[370368045,1751981493650,-151.0,0.00019178,2]
[370368046,1751981493659,-460.0,0.00019178,2]
[370368047,1751981493669,-219.735924,0.00019178,2]
[370368048,1751981493678,-151.0,0.00019178,2]
[370368049,1751981493688,-151.0,0.00019315,2]
[370368050,1751981493697,-151.0,0.00019329,2]
[370368051,1751981493707,-151.0,0.00019452,2]
[370368052,1751981493716,-151.0,0.00019452,2]
[370368053,1751981493726,-151.0,0.00019452,2]
[370368054,1751981493736,-13348.38968515,0.00023,26]
[370368055,1751981493746,-502.21,0.00023,3]
[370368056,1751981494256,-500.0,0.00023,3]
[370368057,1751981494267,-500.0,0.00023,3]
[370368058,1751981494276,-500.0,0.00023,3]
[370368059,1751981494286,-160.0,0.00023,3]
[370368060,1751981494296,-160.0,0.00023,3]
[370368061,1751981494309,-638.21,0.00023,3]
[370368062,1751981494321,-500.0,0.00023,3]
[370368063,1751981494330,-500.0,0.00023,3]
[370368064,1751981494340,-500.0,0.00023,3]
[370368065,1751981494349,-500.0,0.00023,3]
[370368066,1751981494358,-160.0,0.00023,3]
[370368067,1751981494368,-249.54494997,0.00023,2]
[370368068,1751981494377,-160.0,0.00023,3]
[370368069,1751981494387,-1333.42161332,0.00023,2]
[370368070,1751981494398,-160.0,0.00023,3]
[370368071,1751981494407,-5734.37445531,0.00023,7]
[370368072,1751981494420,-4130.90573929,0.00023,7]
[370368073,1751981494432,-5831.07470539,0.00023,7]
[370368074,1751981494442,-160.0,0.00023,3]
[370368075,1751981494451,-10403.21459102,0.00023,7]
[370368076,1751981494513,-466.22057489,0.00023,7]
[370368077,1751981495324,-0.60611749,0.00019178,2]
[370368078,1751981495504,-150.39388251,0.00019178,2]
[370368079,1751981495514,-460.0,0.00019178,2]
[370368080,1751981495524,-151.0,0.00019178,2]
[370368081,1751981495533,-151.0,0.00019178,2]
[370368082,1751981495542,-219.735924,0.000192,2]
[370368083,1751981495552,-219.735924,0.00019287,2]
[370368084,1751981495563,-277.935036,0.00019315,2]
[370368085,1751981495572,-219.735924,0.00019329,2]
[370368086,1751981495582,-460.0,0.00019452,2]
[370368087,1751981495591,-219.735924,0.00019452,2]
[370368088,1751981495601,-90555.66483409,0.00023,7]
[370368089,1751981495611,-160.0,0.00023,3]
[370368090,1751981495620,-2000.0,0.00023,2]
[370368091,1751981495629,-215.2437778,0.00023,3]
[370368092,1751981495638,-167.0,0.00023,7]
[370368093,1751981495648,-150.0,0.00023,7]
[370368094,1751981495658,-837.89306043,0.00023,3]